fUST/lending_fUST_20241107
["ID","MTS","AMOUNT","RATE_DAILY","PERIOD"]
[341515310,1730945448754,-151.0,0.00022171,7]
[341515311,1730945448764,-500.0,0.00022173,2]
[341515312,1730945448774,-500.0,0.00022173,2]
[341515313,1730945448783,-587.93023268,0.00022173,2]
[341515314,1730945448793,-500.0,0.00022173,2]
[341515315,1730945448801,-508.55675425,0.00022173,2]
[341515316,1730945448811,-434.23469591,0.00022173,2]
[341515317,1730945448820,-151.0,0.00022191,7]
[341515318,1730945448829,-151.0,0.00022191,7]
[341515319,1730945448838,-151.0,0.00022191,7]
[341515320,1730945448852,-151.0,0.00022191,7]
[341515321,1730945448862,-502.10675262,0.00022191,2]
[341515322,1730945448872,-151.0,0.00022191,7]
[341515323,1730945448881,-500.0,0.00022191,2]
[341515324,1730945448890,-151.672126,0.00022191,7]
[341515325,1730945448899,-156.664169,0.00022191,7]
[341515326,1730945448908,-159.926128,0.00022191,7]
[341515327,1730945448917,-345.99408915,0.00022191,2]
[341515328,1730945448927,-151.0,0.00022191,7]
[341515329,1730945448936,-500.0,0.00022191,2]
[341515330,1730945448946,-151.0,0.00022191,7]
[341515331,1730945448955,-151.0,0.00022191,7]
[341515332,1730945448965,-153.863685,0.00022191,7]
[341515333,1730945448975,-517.99949642,0.00022191,2]
[341515334,1730945448985,-292.635998,0.00022191,7]
[341515335,1730945448996,-491.44780747,0.00022191,2]
[341515336,1730945449132,-8.55219253,0.00022191,2]
[341515337,1730945449142,-263.62383747,0.00022191,2]
[341515338,1730945449154,-173.77838457,0.00022191,2]
[341515339,1730945449163,-423.97362561,0.00022191,2]
[341515340,1730945449227,-76.02637439,0.00022191,2]
[341515341,1730945449238,-200.02206125,0.00022191,2]
[341515342,1730945449248,-43.95156436,0.00022191,2]
[341515348,1730945476002,2129.610776,0.00032595,30]
[341515355,1730945564541,163.599838,0.00013973,2]
[341515359,1730945750247,175.4877324,0.00020712,2]
[341515360,1730945838587,1567.29298044,0.00032571,120]
[341515361,1730945842697,1169.27083333,0.0002083,2]
[341515362,1730945999106,278.292393,0.00020731,2]
[341515365,1730946108307,231.697475,0.00013973,2]
[341515367,1730946218626,307.6625289,0.00020624,2]
[341515379,1730946451053,1953.09,0.0002083,2]
[341515382,1730946454947,1169.27083333,0.0002083,2]
[341515384,1730946531513,499.999999,0.00032572,120]
[341515452,1730946620379,500.0,0.00032573,120]
[341515508,1730946632748,940.7623926,0.0002019,2]
[341515511,1730946632765,-300.0,0.00020873,2]
[341515513,1730946632774,-180.42805288,0.00020873,2]
[341515516,1730946632786,-119.57194712,0.00020873,2]
[341515518,1730946632797,-350.51172182,0.00020874,2]
[341515666,1730946643841,-24549.48827818,0.00020874,2]
[341515668,1730946643851,-292.34318917,0.00021,2]
[341515670,1730946643861,-10000.0,0.00021,5]
[341515672,1730946643873,-1476.29234634,0.00021,2]
[341515674,1730946643883,-10252.46512062,0.00021,2]
[341515676,1730946643893,-509.26923454,0.000212,2]
[341515678,1730946643902,-7523.7868278,0.00021752,2]
[341515680,1730946643911,-1000.0,0.000218,2]
[341515682,1730946643921,-163.65596246,0.00021817,2]
[341515685,1730946643930,-163.65596244,0.00021845,2]
[341515687,1730946643942,-163.65596244,0.00021872,2]
[341515689,1730946643951,-163.65596244,0.000219,2]
[341515690,1730946643960,-340.45649537,0.00021916,2]
[341515692,1730946643969,-178.266565,0.00021916,2]
[341515693,1730946643978,-216.60892395,0.00021917,2]
[341515694,1730946643987,-500.0,0.00021917,2]
[341515695,1730946643999,-500.0,0.00021917,2]
[341515696,1730946644009,-522.70668846,0.00021917,2]
[341515697,1730946644019,-514.67169138,0.00021917,2]
[341515698,1730946644030,-500.0,0.00021917,2]
[341515699,1730946644039,-509.11178959,0.00021917,2]
[341515700,1730946644048,-521.093407,0.00021917,2]
[341515701,1730946644058,-500.0,0.00021917,2]
[341515702,1730946644067,-500.0,0.00021917,2]
[341515703,1730946644077,-500.0,0.00021917,2]
[341515704,1730946644086,-500.0,0.00021917,2]
[341515705,1730946644096,-533.62141767,0.00021917,2]
[341515706,1730946644106,-500.0,0.00021917,2]
[341515707,1730946644116,-194.59022825,0.00021917,2]
[341515708,1730946644127,-597.18412495,0.00021917,2]
[341515709,1730946644138,-519.85454285,0.00021917,2]
[341515710,1730946644147,-522.04073671,0.00021917,2]
[341515711,1730946644158,-521.62889033,0.00021917,2]
[341515712,1730946644167,-500.0,0.00021917,2]
[341515713,1730946644177,-507.21000933,0.00021917,2]
[341515714,1730946644187,-591.45865096,0.00021917,2]
[341515715,1730946644196,-500.0,0.00021917,2]
[341515716,1730946644205,-511.34043018,0.00021917,2]
[341515717,1730946644215,-515.12523725,0.00021917,2]
[341515718,1730946644224,-500.0,0.00021917,2]
[341515719,1730946644233,-500.0,0.00021917,2]
[341515720,1730946644243,-531.1988487,0.00021917,2]
[341515721,1730946644254,-500.0,0.00021917,2]
[341515722,1730946644264,-505.95447122,0.00021917,2]
[341515723,1730946644274,-500.0,0.00021917,2]
[341515724,1730946644283,-510.75877069,0.00021917,2]
[341515725,1730946644293,-500.0,0.00021917,2]
[341515726,1730946644302,-202.24332005,0.00021917,2]
[341515727,1730946644312,-510.78529503,0.00021917,2]
[341515728,1730946644321,-558.30084425,0.00021917,2]
[341515729,1730946644331,-500.0,0.00021917,2]
[341515730,1730946644342,-500.0,0.00021917,2]
[341515731,1730946644351,-500.0,0.00021917,2]
[341515732,1730946644362,-512.67626147,0.00021917,2]
[341515733,1730946644372,-502.25339905,0.00021917,2]
[341515734,1730946644382,-500.0,0.00021917,2]
[341515735,1730946644391,-500.0,0.00021917,2]
[341515736,1730946644401,-500.0,0.00021917,2]
[341515737,1730946644411,-500.0,0.00021917,2]
[341515738,1730946644421,-500.0,0.00021917,2]
[341515739,1730946644432,-500.0,0.00021917,2]
[341515740,1730946644443,-500.0,0.00021917,2]
[341515741,1730946644452,-603.66971815,0.00021917,2]
[341515742,1730946644462,-516.92115192,0.00021917,2]
[341515743,1730946644472,-503.64253086,0.00021917,2]
[341515744,1730946644481,-160.46162462,0.00021917,2]
[341515745,1730946644491,-500.0,0.00021917,2]
[341515746,1730946644500,-645.00824337,0.00021917,2]
[341515747,1730946644508,-615.99943394,0.00021917,2]
[341515748,1730946644518,-503.01856847,0.00021917,2]
[341515749,1730946644527,-521.86119303,0.00021917,2]
[341515750,1730946644536,-500.0,0.00021917,2]
[341515751,1730946644545,-506.1272553,0.00021917,2]
[341515752,1730946644554,-503.00902497,0.00021917,2]
[341515753,1730946644563,-507.58397378,0.00021917,2]
[341515754,1730946644572,-516.79236577,0.00021917,2]
[341515755,1730946644581,-566.55056415,0.00021917,2]
[341515756,1730946644590,-590.42351484,0.00021917,2]
[341515757,1730946644600,-500.0,0.00021917,2]
[341515758,1730946644608,-500.0,0.00021917,2]
[341515759,1730946644617,-500.0,0.00021917,2]
[341515760,1730946644626,-500.0,0.00021917,2]
[341515761,1730946644635,-518.59474468,0.00021917,2]
[341515762,1730946644644,-500.0,0.00021917,2]
[341515763,1730946644653,-361.62470605,0.00021917,2]
[341515764,1730946644663,-509.86400108,0.00021917,2]
[341515765,1730946644671,-500.0,0.00021917,2]
[341515766,1730946644680,-500.0,0.00021917,2]
[341515767,1730946644691,-500.0,0.00021917,2]
[341515768,1730946644700,-500.0,0.00021917,2]
[341515769,1730946644709,-500.0,0.00021917,2]
[341515770,1730946644719,-500.0,0.00021917,2]
[341515771,1730946644728,-523.210524,0.00021917,2]
[341515772,1730946644737,-500.0,0.00021917,2]
[341515773,1730946644746,-500.0,0.00021917,2]
[341515774,1730946644755,-503.25922116,0.00021917,2]
[341515775,1730946644764,-500.0,0.00021917,2]
[341515776,1730946644773,-500.0,0.00021917,2]
[341515777,1730946644783,-500.0,0.00021917,2]
[341515778,1730946644791,-429.27414321,0.00021917,2]
[341515779,1730946644800,-500.0,0.00021917,2]
[341515780,1730946644809,-500.0,0.00021917,2]
[341515781,1730946644818,-500.0,0.00021917,2]
[341515782,1730946644826,-503.07217345,0.00021917,2]
[341515783,1730946644835,-500.0,0.00021917,2]
[341515784,1730946644844,-500.0,0.00021917,2]
[341515785,1730946644855,-500.0,0.00021917,2]
[341515786,1730946644863,-514.00139793,0.00021917,2]
[341515787,1730946644873,-500.0,0.00021917,2]
[341515788,1730946644882,-500.0,0.00021917,2]
[341515789,1730946644891,-503.87778701,0.00021917,2]
[341515790,1730946644900,-500.0,0.00021917,2]
[341515791,1730946644909,-541.5,0.00021917,2]
[341515792,1730946645006,-500.0,0.00021917,2]
[341515793,1730946645017,-506.88852327,0.00021917,2]
[341515794,1730946645027,-500.0,0.00021917,2]
[341515795,1730946645036,-500.0,0.00021917,2]
[341515796,1730946645046,-500.0,0.00021917,2]
[341515797,1730946645056,-517.79231031,0.00021917,2]
[341515798,1730946645065,-500.0,0.00021917,2]
[341515799,1730946645075,-500.0,0.00021917,2]
[341515800,1730946645085,-500.0,0.00021917,2]
[341515801,1730946645095,-162.95144904,0.00021917,2]
[341515802,1730946645104,-500.0,0.00021917,2]
[341515803,1730946645113,-500.0,0.00021917,2]
[341515804,1730946645123,-500.0,0.00021917,2]
[341515805,1730946645133,-500.0,0.00021917,2]
[341515806,1730946645142,-500.0,0.00021917,2]
[341515807,1730946645151,-500.0,0.00021917,2]
[341515808,1730946645160,-500.0,0.00021917,2]
[341515809,1730946645169,-500.0,0.00021917,2]
[341515810,1730946645179,-500.0,0.00021917,2]
[341515811,1730946645190,-500.0,0.00021917,2]
[341515812,1730946645202,-500.0,0.00021917,2]
[341515813,1730946645211,-325.70938031,0.00021917,2]
[341515814,1730946645221,-500.0,0.00021917,2]
[341515815,1730946645230,-500.0,0.00021917,2]
[341515816,1730946645240,-500.0,0.00021917,2]
[341515817,1730946645249,-513.54054466,0.00021917,2]
[341515818,1730946645258,-500.0,0.00021917,2]
[341515819,1730946645268,-513.06209453,0.00021917,2]
[341515820,1730946645278,-511.05850415,0.00021917,2]
[341515821,1730946645287,-559.4750157,0.00021917,2]
[341515822,1730946645296,-500.0,0.00021917,2]
[341515823,1730946645306,-500.0,0.00021917,2]
[341515824,1730946645315,-536.4476436,0.00021917,2]
[341515825,1730946645325,-500.0,0.00021917,2]
[341515826,1730946645335,-521.33498058,0.00021917,2]
[341515827,1730946645346,-500.0,0.00021917,2]
[341515828,1730946645355,-509.84908097,0.00021917,2]
[341515829,1730946645365,-500.0,0.00021917,2]
[341515830,1730946645375,-500.0,0.00021917,2]
[341515831,1730946645385,-250.31478143,0.00021917,2]
[341515832,1730946645395,-525.03695979,0.00021917,2]
[341515833,1730946645406,-500.0,0.00021917,2]
[341515834,1730946645415,-500.0,0.00021917,2]
[341515835,1730946645425,-500.0,0.00021917,2]
[341515836,1730946645437,-500.0,0.00021917,2]
[341515837,1730946645447,-500.0,0.00021917,2]
[341515838,1730946645457,-500.0,0.00021917,2]
[341515839,1730946645467,-500.0,0.00021917,2]
[341515840,1730946645476,-500.0,0.00021917,2]
[341515841,1730946645485,-500.0,0.00021917,2]
[341515842,1730946645495,-576.83153608,0.00021917,2]
[341515843,1730946645504,-500.0,0.00021917,2]
[341515844,1730946645514,-500.0,0.00021917,2]
[341515845,1730946645524,-500.0,0.00021917,2]
[341515846,1730946645533,-500.0,0.00021917,2]
[341515847,1730946645542,-500.0,0.00021917,2]
[341515848,1730946645552,-500.0,0.00021917,2]
[341515849,1730946645561,-500.0,0.00021917,2]
[341515850,1730946645570,-500.0,0.00021917,2]
[341515851,1730946645580,-500.0,0.00021917,2]
[341515852,1730946645589,-527.91743427,0.00021917,2]
[341515853,1730946645598,-500.0,0.00021917,2]
[341515854,1730946645607,-500.0,0.00021917,2]
[341515855,1730946645618,-500.0,0.00021917,2]
[341515856,1730946645628,-500.0,0.00021917,2]
[341515857,1730946645638,-500.0,0.00021917,2]
[341515858,1730946645649,-500.0,0.00021917,2]
[341515859,1730946645659,-500.0,0.00021917,2]
[341515860,1730946645668,-500.0,0.00021917,2]
[341515861,1730946645678,-500.0,0.00021917,2]
[341515862,1730946645691,-226.2296567,0.00021917,2]
[341515863,1730946645701,-500.0,0.00021917,2]
[341515864,1730946645712,-500.0,0.00021917,2]
[341515865,1730946645722,-500.0,0.00021917,2]
[341515866,1730946645732,-500.0,0.00021917,2]
[341515867,1730946645743,-511.37030119,0.00021917,2]
[341515868,1730946645752,-534.40606514,0.00021917,2]
[341515869,1730946645763,-500.0,0.00021917,2]
[341515870,1730946645773,-500.0,0.00021917,2]
[341515871,1730946645783,-518.9931975,0.00021917,2]
[341515872,1730946645793,-500.0,0.00021917,2]
[341515873,1730946645805,-500.0,0.00021917,2]
[341515874,1730946645815,-500.0,0.00021917,2]
[341515875,1730946645826,-500.0,0.00021917,2]
[341515876,1730946645836,-945.3,0.00021917,2]
[341515877,1730946645845,-500.0,0.00021917,2]
[341515878,1730946645855,-3759.89,0.00021917,2]
[341515879,1730946645866,-500.0,0.00021917,2]
[341515880,1730946645877,-500.0,0.00021917,2]
[341515881,1730946645887,-500.0,0.00021917,2]
[341515882,1730946645896,-254.57308533,0.00021917,2]
[341515883,1730946645905,-500.0,0.00021917,2]
[341515884,1730946645915,-500.0,0.00021917,2]
[341515885,1730946645924,-3609.03,0.00021917,2]
[341515886,1730946645936,-500.0,0.00021917,2]
[341515887,1730946645945,-527.85436859,0.00021917,2]
[341515888,1730946645954,-370.31871195,0.00021917,2]
[341515889,1730946645965,-500.0,0.00021917,2]
[341515890,1730946645974,-500.0,0.00021917,2]
[341515892,1730946645984,-500.0,0.00021917,2]
[341515893,1730946645994,-500.0,0.00021917,2]
[341515895,1730946646007,-500.0,0.00021917,2]
[341515897,1730946646016,-500.0,0.00021917,2]
[341515898,1730946646025,-500.0,0.00021917,2]
[341515899,1730946646035,-500.0,0.00021917,2]
[341515900,1730946646047,-1794.13,0.00021917,2]
[341515901,1730946646057,-500.0,0.00021917,2]
[341515902,1730946646066,-562.21,0.00021917,2]
[341515903,1730946646075,-500.0,0.00021917,2]
[341515904,1730946646086,-500.0,0.00021917,2]
[341515906,1730946646096,-552.2,0.00021917,2]
[341515908,1730946646106,-8494.18,0.00021917,2]
[341515909,1730946646116,-500.0,0.00021917,2]
[341515910,1730946646125,-500.0,0.00021917,2]
[341515911,1730946646134,-500.0,0.00021917,2]
[341515912,1730946646146,-512.73073486,0.00021917,2]
[341515913,1730946646158,-303.85087551,0.00021917,2]
[341515914,1730946646169,-500.0,0.00021917,2]
[341515915,1730946646180,-514.34947231,0.00021917,2]
[341515916,1730946646190,-369.53366413,0.00021917,2]
[341515917,1730946646200,-500.0,0.00021917,2]
[341515918,1730946646210,-500.0,0.00021917,2]
[341515919,1730946646220,-500.0,0.00021917,2]
[341515920,1730946646230,-500.0,0.00021917,2]
[341515921,1730946646240,-569.80461547,0.00021917,2]
[341515922,1730946646251,-500.0,0.00021917,2]
[341515923,1730946646261,-502.73222116,0.00021917,2]
[341515924,1730946646271,-500.0,0.00021917,2]
[341515925,1730946646281,-500.0,0.00021917,2]
[341515926,1730946646291,-517.97292375,0.00021917,2]
[341515927,1730946646301,-1770.58,0.00021917,2]
[341515928,1730946646310,-514.28726372,0.00021917,2]
[341515929,1730946646319,-252.33804993,0.00021917,2]
[341515930,1730946646329,-522.69608231,0.00021917,2]
[341515931,1730946646339,-500.0,0.00021917,2]
[341515932,1730946646348,-2130.79,0.00021917,2]
[341515933,1730946646358,-510.50031185,0.00021917,2]
[341515934,1730946646367,-528.57,0.00021917,2]
[341515936,1730946646378,-500.0,0.00021917,2]
[341515937,1730946646388,-500.0,0.00021917,2]
[341515938,1730946646398,-500.0,0.00021917,2]
[341515939,1730946646407,-500.0,0.00021917,2]
[341515940,1730946646418,-500.0,0.00021917,2]
[341515941,1730946646428,-500.0,0.00021917,2]
[341515942,1730946646439,-500.0,0.00021917,2]
[341515943,1730946646448,-500.0,0.00021917,2]
[341515944,1730946646457,-500.0,0.00021917,2]
[341515945,1730946646467,-500.0,0.00021917,2]
[341515946,1730946646476,-504.58851398,0.00021917,2]
[341515948,1730946646486,-512.25514137,0.00021917,2]
[341515949,1730946646496,-500.0,0.00021917,2]
[341515951,1730946646506,-500.0,0.00021917,2]
[341515952,1730946646516,-735.34,0.00021917,2]
[341515953,1730946646525,-500.0,0.00021917,2]
[341515954,1730946646535,-500.0,0.00021917,2]
[341515955,1730946646544,-644.77,0.00021917,2]
[341515956,1730946646554,-500.0,0.00021917,2]
[341515957,1730946646564,-500.0,0.00021917,2]
[341515958,1730946646574,-500.0,0.00021917,2]
[341515959,1730946646583,-521.51042948,0.00021917,2]
[341515961,1730946646593,-427.95051009,0.00021917,2]
[341515962,1730946646603,-500.0,0.00021917,2]
[341515963,1730946646612,-500.0,0.00021917,2]
[341515964,1730946646622,-500.0,0.00021917,2]
[341515965,1730946646631,-520.51,0.00021917,2]
[341515966,1730946646640,-500.0,0.00021917,2]
[341515967,1730946646650,-500.0,0.00021917,2]
[341515968,1730946646659,-400.0,0.00021917,2]
[341515969,1730946646669,-500.0,0.00021917,2]
[341515970,1730946646679,-500.0,0.00021917,2]
[341515971,1730946646689,-500.0,0.00021917,2]
[341515972,1730946646698,-500.0,0.00021917,2]
[341515973,1730946646707,-500.0,0.00021917,2]
[341515974,1730946646716,-506.54288221,0.00021917,2]
[341515975,1730946646725,-500.0,0.00021917,2]
[341515976,1730946646734,-515.32859482,0.00021917,2]
[341515977,1730946646743,-525.13,0.00021917,2]
[341515978,1730946646752,-500.0,0.00021917,2]
[341515979,1730946646761,-500.0,0.00021917,2]
[341515981,1730946646770,-500.0,0.00021917,2]
[341515982,1730946646779,-500.0,0.00021917,2]
[341515983,1730946646788,-500.0,0.00021917,2]
[341515984,1730946646797,-500.0,0.00021917,2]
[341515985,1730946646806,-500.0,0.00021917,2]
[341515986,1730946646815,-500.0,0.00021917,2]
[341515987,1730946646824,-500.0,0.00021917,2]
[341515988,1730946646833,-500.0,0.00021917,2]
[341515989,1730946646842,-500.0,0.00021917,2]
[341515990,1730946646852,-500.0,0.00021917,2]
[341515991,1730946646860,-500.0,0.00021917,2]
[341515992,1730946646871,-500.0,0.00021917,2]
[341515993,1730946646880,-263.62383747,0.00021917,2]
[341515994,1730946646890,-926.73,0.00021917,2]
[341515995,1730946646899,-500.0,0.00021917,2]
[341515996,1730946646908,-500.0,0.00021917,2]
[341515997,1730946646993,-500.0,0.00021917,2]
[341515998,1730946647007,-166.666666,0.00021918,2]
[341515999,1730946647016,-429745.24088785,0.00022,30]
[341516000,1730946647027,-8826.63620198,0.00022,2]
[341516001,1730946647036,-283.73817225,0.00022,2]
[341516002,1730946647046,-7523.7868279,0.00022158,2]
[341516003,1730946647055,-151.0,0.00022171,7]
[341516004,1730946647064,-151.0,0.00022171,7]
[341516005,1730946647074,-151.0,0.00022171,7]
[341516006,1730946647083,-501.76828395,0.00022173,2]
[341516007,1730946647092,-163.25019285,0.00022173,2]
[341516008,1730946647102,-500.0,0.00022173,2]
[341516009,1730946647111,-500.0,0.00022173,2]
[341516010,1730946647121,-500.0,0.00022173,2]
[341516011,1730946647130,-151.0,0.00022191,7]
[341516012,1730946647140,-151.0,0.00022191,7]
[341516013,1730946647149,-246.885696,0.00022191,7]
[341516014,1730946647158,-151.0,0.00022191,7]
[341516015,1730946647168,-151.0,0.00022191,7]
[341516016,1730946647177,-151.0,0.00022191,7]
[341516017,1730946647189,-151.0,0.00022191,7]
[341516019,1730946647198,-500.0,0.00022191,2]
[341516021,1730946647208,-523.77300813,0.00022191,2]
[341516023,1730946647217,-151.0,0.00022191,7]
[341516025,1730946647226,-151.0,0.00022191,7]
[341516027,1730946647236,-500.0,0.00022191,2]
[341516028,1730946647245,-500.0,0.00022191,2]
[341516029,1730946647254,-537.01432561,0.00022191,2]
[341516030,1730946647264,-500.0,0.00022191,2]
[341516031,1730946647274,-525.09062427,0.00022191,2]
[341516032,1730946647283,-500.0,0.00022191,2]
[341516033,1730946647292,-500.0,0.00022191,2]
[341516034,1730946647302,-372.72662339,0.00022191,2]
[341516035,1730946647311,-500.0,0.00022191,2]
[341516036,1730946647320,-550.40747414,0.00022191,2]
[341516037,1730946647329,-450.0,0.00022191,2]
[341516038,1730946647338,-505.35458652,0.00022191,2]
[341516039,1730946647347,-602.56893573,0.00022191,2]
[341516040,1730946647356,-500.0,0.00022191,2]
[341516041,1730946647365,-500.0,0.00022191,2]
[341516042,1730946647375,-533.06126156,0.00022191,2]
[341516043,1730946647384,-504.68294728,0.00022191,2]
[341516044,1730946647393,-511.69383764,0.00022191,2]
[341516045,1730946647402,-500.0,0.00022191,2]
[341516046,1730946647412,-500.0,0.00022191,2]
[341516047,1730946647421,-500.0,0.00022191,2]
[341516048,1730946647430,-627.57384727,0.00022191,2]
[341516049,1730946647443,-500.0,0.00022191,2]
[341516050,1730946647452,-611.89253529,0.00022191,2]
[341516051,1730946647462,-500.0,0.00022191,2]
[341516052,1730946647471,-500.0,0.00022191,2]
[341516053,1730946647481,-500.0,0.00022191,2]
[341516054,1730946647490,-509.34440495,0.00022191,2]
[341516055,1730946647499,-512.39393588,0.00022191,2]
[341516056,1730946647508,-500.0,0.00022191,2]
[341516057,1730946647518,-500.0,0.00022191,2]
[341516058,1730946647526,-500.0,0.00022191,2]
[341516059,1730946647535,-500.0,0.00022191,2]
[341516060,1730946647544,-584.77895349,0.00022191,2]
[341516061,1730946647553,-359.15130544,0.00022191,2]
[341516062,1730946647562,-500.0,0.00022191,2]
[341516063,1730946647571,-151.0,0.00022191,7]
[341516064,1730946647580,-151.0,0.00022191,7]
[341516065,1730946647589,-151.0,0.00022191,7]
[341516066,1730946647598,-500.0,0.00022191,2]
[341516067,1730946647607,-500.0,0.00022191,2]
[341516068,1730946647617,-409.50721017,0.00022191,2]
[341516069,1730946647626,-520.20752065,0.00022191,2]
[341516070,1730946647635,-500.0,0.00022191,2]
[341516071,1730946647644,-500.0,0.00022191,2]
[341516072,1730946647654,-500.0,0.00022191,2]
[341516073,1730946647664,-500.0,0.00022191,2]
[341516074,1730946647673,-500.0,0.00022191,2]
[341516075,1730946647682,-500.0,0.00022191,2]
[341516076,1730946647692,-500.0,0.00022191,2]
[341516077,1730946647702,-500.0,0.00022191,2]
[341516078,1730946647711,-500.0,0.00022191,2]
[341516079,1730946647720,-156.46083866,0.00022191,2]
[341516080,1730946647729,-190.42804521,0.00022191,2]
[341516081,1730946647737,-500.0,0.00022191,2]
[341516082,1730946647747,-500.0,0.00022191,2]
[341516083,1730946647756,-500.0,0.00022191,2]
[341516084,1730946647766,-500.0,0.00022191,2]
[341516085,1730946647775,-500.0,0.00022191,2]
[341516086,1730946647784,-500.0,0.00022191,2]
[341516087,1730946647793,-500.0,0.00022191,2]
[341516088,1730946647803,-517.60359239,0.00022191,2]
[341516089,1730946647811,-500.0,0.00022191,2]
[341516090,1730946647821,-533.12056804,0.00022191,2]
[341516091,1730946647830,-500.0,0.00022191,2]
[341516092,1730946647839,-500.0,0.00022191,2]
[341516093,1730946647849,-500.0,0.00022191,2]
[341516094,1730946647858,-500.0,0.00022191,2]
[341516095,1730946647867,-500.0,0.00022191,2]
[341516096,1730946647877,-359.87213335,0.00022191,2]
[341516097,1730946647886,-151.0,0.00022191,7]
[341516098,1730946647896,-154.30207542,0.00022191,2]
[341516099,1730946647906,-564.31652656,0.00022191,2]
[341516100,1730946647915,-511.10707559,0.00022191,2]
[341516101,1730946647924,-517.36888391,0.00022191,2]
[341516102,1730946647933,-500.0,0.00022191,2]
[341516103,1730946647946,-500.0,0.00022191,2]
[341516104,1730946647955,-500.0,0.00022191,2]
[341516105,1730946647964,-509.83945747,0.00022191,2]
[341516106,1730946647973,-500.0,0.00022191,2]
[341516107,1730946647982,-165.147233,0.00022191,7]
[341516108,1730946647991,-500.0,0.00022191,2]
[341516109,1730946648003,-500.0,0.00022191,2]
[341516110,1730946648012,-365.87544352,0.00022191,2]
[341516111,1730946648022,-500.0,0.00022191,2]
[341516112,1730946648031,-501.38581286,0.00022191,2]
[341516113,1730946648041,-500.0,0.00022191,2]
[341516114,1730946648050,-510.00888489,0.00022191,2]
[341516115,1730946648059,-532.28151949,0.00022191,2]
[341516116,1730946648069,-500.0,0.00022191,2]
[341516117,1730946648080,-568.92290687,0.00022191,2]
[341516118,1730946648090,-151.0,0.00022191,7]
[341516119,1730946648099,-500.0,0.00022191,2]
[341516120,1730946648109,-500.0,0.00022191,2]
[341516121,1730946648119,-500.0,0.00022191,2]
[341516122,1730946648129,-500.0,0.00022191,2]
[341516123,1730946648139,-200.123598,0.00022191,7]
[341516124,1730946648148,-500.0,0.00022191,2]
[341516125,1730946648157,-200.123598,0.00022191,7]
[341516126,1730946648167,-500.0,0.00022191,2]
[341516127,1730946648176,-151.0,0.00022191,7]
[341516128,1730946648185,-500.0,0.00022191,2]
[341516129,1730946648195,-151.0,0.00022191,7]
[341516130,1730946648204,-500.0,0.00022191,2]
[341516131,1730946648213,-151.0,0.00022191,7]
[341516132,1730946648222,-196.893845,0.00022191,2]
[341516133,1730946648232,-500.0,0.00022191,2]
[341516134,1730946648241,-500.0,0.00022191,2]
[341516135,1730946648250,-500.0,0.00022191,2]
[341516136,1730946648259,-546.19376255,0.00022191,2]
[341516137,1730946648268,-500.0,0.00022191,2]
[341516138,1730946648278,-500.0,0.00022191,2]
[341516139,1730946648288,-500.0,0.00022191,2]
[341516140,1730946648297,-151.0,0.00022191,7]
[341516141,1730946648306,-500.0,0.00022191,2]
[341516142,1730946648315,-500.0,0.00022191,2]
[341516143,1730946648324,-500.0,0.00022191,2]